{"text_format":"1","workbook":"xlsx","n_sheets":7,"sheets":["Hex Code","Index Value","RGB Value","Decimal","Formula","Font Color","Overview"],"not_rendered":{"charts":0,"images":0,"macros":1,"external_links":0,"defined_names":1,"comments":0,"pivot_tables":0},"unopened":[],"bounds":{"document_bytes":16777216,"sheet_cells":100000,"rows_first":2000,"rows_last":500,"rows_between":2000,"halvings":0,"cell_chars":16384,"cell_head_chars":4096},"cells_cut":0,"cells_raw":0,"read":"whole","date_system":"1900"}

{"sheet":"Hex Code","index":0,"n_rows":15,"n_cols":14,"rows_kept":15,"cut":false,"hidden":false,"merged":[[1,1,1,3],[1,11,1,13]]}
[]
[null,"Finding Hex Color Code",null,null,null,null,null,null,null,null,null,"Try Yourself"]
[]
[null,"Color","Name","HEX Code",null,null,null,null,null,null,null,"Color","Name","HEX Code"]
[null,null,"Dark Red",{"$f":"GetHEXcode(B5)","v":"C00000"},null,null,null,null,null,null,null,null,"Dark Red"]
[null,null,"Red",{"$f":"GetHEXcode(B6)","v":"FF0000"},null,null,null,null,null,null,null,null,"Red"]
[null,null,"Orange",{"$f":"GetHEXcode(B7)","v":"FFC000"},null,null,null,null,null,null,null,null,"Orange"]
[null,null,"Yellow",{"$f":"GetHEXcode(B8)","v":"FFFF00"},null,null,null,null,null,null,null,null,"Yellow"]
[null,null,"Light Green",{"$f":"GetHEXcode(B9)","v":"92D050"},null,null,null,null,null,null,null,null,"Light Green"]
[null,null,"Green",{"$f":"GetHEXcode(B10)","v":"00B050"},null,null,null,null,null,null,null,null,"Green"]
[null,null,"Light Blue",{"$f":"GetHEXcode(B11)","v":"00B0F0"},null,null,null,null,null,null,null,null,"Light Blue"]
[null,null,"Blue",{"$f":"GetHEXcode(B12)","v":"0070C0"},null,null,null,null,null,null,null,null,"Blue"]
[null,null,"Dark Blue",{"$f":"GetHEXcode(B13)","v":"002060"},null,null,null,null,null,null,null,null,"Dark Blue"]
[null,null,"Purple",{"$f":"GetHEXcode(B14)","v":"7030A0"},null,null,null,null,null,null,null,null,"Purple"]
[null,null,"Black",{"$f":"GetHEXcode(B15)","v":"000000"},null,null,null,null,null,null,null,null,"Black"]

{"sheet":"Index Value","index":1,"n_rows":15,"n_cols":14,"rows_kept":15,"cut":false,"hidden":false,"merged":[[1,1,1,3],[1,11,1,13]]}
[]
[null,"Excel Color Index Formula ",null,null,null,null,null,null,null,null,null,"Try Yourself"]
[]
[null,"Color","Name","Index Value",null,null,null,null,null,null,null,"Color","Name","Index Value"]
[null,null,"Dark Red",{"$f":"ColorIndex(B5)","v":3},null,null,null,null,null,null,null,null,"Dark Red"]
[null,null,"Red",{"$f":"ColorIndex(B6)","v":3},null,null,null,null,null,null,null,null,"Red"]
[null,null,"Orange",{"$f":"ColorIndex(B7)","v":44},null,null,null,null,null,null,null,null,"Orange"]
[null,null,"Yellow",{"$f":"ColorIndex(B8)","v":6},null,null,null,null,null,null,null,null,"Yellow"]
[null,null,"Light Green",{"$f":"ColorIndex(B9)","v":43},null,null,null,null,null,null,null,null,"Light Green"]
[null,null,"Green",{"$f":"ColorIndex(B10)","v":14},null,null,null,null,null,null,null,null,"Green"]
[null,null,"Light Blue",{"$f":"ColorIndex(B11)","v":33},null,null,null,null,null,null,null,null,"Light Blue"]
[null,null,"Blue",{"$f":"ColorIndex(B12)","v":23},null,null,null,null,null,null,null,null,"Blue"]
[null,null,"Dark Blue",{"$f":"ColorIndex(B13)","v":49},null,null,null,null,null,null,null,null,"Dark Blue"]
[null,null,"Purple",{"$f":"ColorIndex(B14)","v":47},null,null,null,null,null,null,null,null,"Purple"]
[null,null,"Black",{"$f":"ColorIndex(B15)","v":1},null,null,null,null,null,null,null,null,"Black"]

{"sheet":"RGB Value","index":2,"n_rows":15,"n_cols":15,"rows_kept":15,"cut":false,"hidden":false,"merged":[[1,1,1,3],[1,12,1,14]]}
[]
[null,"Finding RGB Color Codes ",null,null,null,null,null,null,null,null,null,null,"Try Yourself"]
[]
[null,"Color","Name","RGB Value",null,null,null,null,null,null,null,null,"Color","Name","RGB Value"]
[null,null,"Dark Red",{"$f":"GetRGBvalue(B5,\"rgb\")","v":"192, 0, 0"},null,null,null,null,null,null,null,null,null,"Dark Red"]
[null,null,"Red",{"$f":"GetRGBvalue(B6,\"rgb\")","v":"255, 0, 0"},null,null,null,null,null,null,null,null,null,"Red"]
[null,null,"Orange",{"$f":"GetRGBvalue(B7,\"rgb\")","v":"255, 192, 0"},null,null,null,null,null,null,null,null,null,"Orange"]
[null,null,"Yellow",{"$f":"GetRGBvalue(B8,\"rgb\")","v":"255, 255, 0"},null,null,null,null,null,null,null,null,null,"Yellow"]
[null,null,"Light Green",{"$f":"GetRGBvalue(B9,\"rgb\")","v":"146, 208, 80"},null,null,null,null,null,null,null,null,null,"Light Green"]
[null,null,"Green",{"$f":"GetRGBvalue(B10,\"rgb\")","v":"0, 176, 80"},null,null,null,null,null,null,null,null,null,"Green"]
[null,null,"Light Blue",{"$f":"GetRGBvalue(B11,\"rgb\")","v":"0, 176, 240"},null,null,null,null,null,null,null,null,null,"Light Blue"]
[null,null,"Blue",{"$f":"GetRGBvalue(B12,\"rgb\")","v":"0, 112, 192"},null,null,null,null,null,null,null,null,null,"Blue"]
[null,null,"Dark Blue",{"$f":"GetRGBvalue(B13,\"rgb\")","v":"0, 32, 96"},null,null,null,null,null,null,null,null,null,"Dark Blue"]
[null,null,"Purple",{"$f":"GetRGBvalue(B14,\"rgb\")","v":"112, 48, 160"},null,null,null,null,null,null,null,null,null,"Purple"]
[null,null,"Black",{"$f":"GetRGBvalue(B15,\"rgb\")","v":"0, 0, 0"},null,null,null,null,null,null,null,null,null,"Black"]

{"sheet":"Decimal","index":3,"n_rows":15,"n_cols":15,"rows_kept":15,"cut":false,"hidden":false,"merged":[[1,1,1,3],[1,12,1,14]]}
[]
[null,"Finding Decimal Values of Color Code",null,null,null,null,null,null,null,null,null,null,"Try Yourself"]
[]
[null,"Color","Name","Decimal Value",null,null,null,null,null,null,null,null,"Color","Name","Decimal Value"]
[null,null,"Dark Red",{"$f":"GetDecimal(B5)","v":192},null,null,null,null,null,null,null,null,null,"Dark Red"]
[null,null,"Red",{"$f":"GetDecimal(B6)","v":255},null,null,null,null,null,null,null,null,null,"Red"]
[null,null,"Orange",{"$f":"GetDecimal(B7)","v":49407},null,null,null,null,null,null,null,null,null,"Orange"]
[null,null,"Yellow",{"$f":"GetDecimal(B8)","v":65535},null,null,null,null,null,null,null,null,null,"Yellow"]
[null,null,"Light Green",{"$f":"GetDecimal(B9)","v":5296274},null,null,null,null,null,null,null,null,null,"Light Green"]
[null,null,"Green",{"$f":"GetDecimal(B10)","v":5287936},null,null,null,null,null,null,null,null,null,"Green"]
[null,null,"Light Blue",{"$f":"GetDecimal(B11)","v":15773696},null,null,null,null,null,null,null,null,null,"Light Blue"]
[null,null,"Blue",{"$f":"GetDecimal(B12)","v":12611584},null,null,null,null,null,null,null,null,null,"Blue"]
[null,null,"Dark Blue",{"$f":"GetDecimal(B13)","v":6299648},null,null,null,null,null,null,null,null,null,"Dark Blue"]
[null,null,"Purple",{"$f":"GetDecimal(B14)","v":10498160},null,null,null,null,null,null,null,null,null,"Purple"]
[null,null,"Black",{"$f":"GetDecimal(B15)","v":0},null,null,null,null,null,null,null,null,null,"Black"]

{"sheet":"Formula","index":4,"n_rows":15,"n_cols":17,"rows_kept":15,"cut":false,"hidden":false,"merged":[[1,1,1,3],[1,14,1,16]]}
[]
[null,"Excel Color Index Formula ",null,null,null,null,null,null,null,null,null,null,null,null,"Try Yourself"]
[]
[null,"Color","Name","Index Value",null,null,null,null,null,null,null,null,null,null,"Color","Name","Index Value"]
[null,null,"Dark Red",{"$f":"Background","v":53},null,null,null,null,null,null,null,null,null,null,null,"Dark Red"]
[null,null,"Red",{"$f":"Background","v":3},null,null,null,null,null,null,null,null,null,null,null,"Red"]
[null,null,"Orange",{"$f":"Background","v":44},null,null,null,null,null,null,null,null,null,null,null,"Orange"]
[null,null,"Yellow",{"$f":"Background","v":6},null,null,null,null,null,null,null,null,null,null,null,"Yellow"]
[null,null,"Light Green",{"$f":"Background","v":43},null,null,null,null,null,null,null,null,null,null,null,"Light Green"]
[null,null,"Green",{"$f":"Background","v":10},null,null,null,null,null,null,null,null,null,null,null,"Green"]
[null,null,"Light Blue",{"$f":"Background","v":33},null,null,null,null,null,null,null,null,null,null,null,"Light Blue"]
[null,null,"Blue",{"$f":"Background","v":23},null,null,null,null,null,null,null,null,null,null,null,"Blue"]
[null,null,"Dark Blue",{"$f":"Background","v":49},null,null,null,null,null,null,null,null,null,null,null,"Dark Blue"]
[null,null,"Purple",{"$f":"Background","v":29},null,null,null,null,null,null,null,null,null,null,null,"Purple"]
[null,null,"Black",{"$f":"Background","v":1},null,null,null,null,null,null,null,null,null,null,null,"Black"]

{"sheet":"Font Color","index":5,"n_rows":15,"n_cols":17,"rows_kept":15,"cut":false,"hidden":false,"merged":[[1,1,1,3],[1,14,1,16]]}
[]
[null,"Excel Font Color Index Formula ",null,null,null,null,null,null,null,null,null,null,null,null,"Try Yourself"]
[]
[null,"Color","Name","Font Index Color",null,null,null,null,null,null,null,null,null,null,"Color","Name","Font Index Color"]
[null,null,"Dark Red",{"$f":"FontIndex(C5)","v":3},null,null,null,null,null,null,null,null,null,null,null,"Dark Red"]
[null,null,"Red",{"$f":"FontIndex(C6)","v":3},null,null,null,null,null,null,null,null,null,null,null,"Red"]
[null,null,"Orange",{"$f":"FontIndex(C7)","v":44},null,null,null,null,null,null,null,null,null,null,null,"Orange"]
[null,null,"Yellow",{"$f":"FontIndex(C8)","v":6},null,null,null,null,null,null,null,null,null,null,null,"Yellow"]
[null,null,"Light Green",{"$f":"FontIndex(C9)","v":43},null,null,null,null,null,null,null,null,null,null,null,"Light Green"]
[null,null,"Green",{"$f":"FontIndex(C10)","v":14},null,null,null,null,null,null,null,null,null,null,null,"Green"]
[null,null,"Light Blue",{"$f":"FontIndex(C11)","v":33},null,null,null,null,null,null,null,null,null,null,null,"Light Blue"]
[null,null,"Blue",{"$f":"FontIndex(C12)","v":23},null,null,null,null,null,null,null,null,null,null,null,"Blue"]
[null,null,"Dark Blue",{"$f":"FontIndex(C13)","v":49},null,null,null,null,null,null,null,null,null,null,null,"Dark Blue"]
[null,null,"Purple",{"$f":"FontIndex(C14)","v":47},null,null,null,null,null,null,null,null,null,null,null,"Purple"]
[null,null,"Black",{"$f":"FontIndex(C15)","v":1},null,null,null,null,null,null,null,null,null,null,null,"Black"]

{"sheet":"Overview","index":6,"n_rows":17,"n_cols":8,"rows_kept":17,"cut":false,"hidden":false,"merged":[[16,3,16,6],[1,1,1,7],[16,1,16,2]]}
[]
[null,"Overview of Excel Color Index Formula"]
[]
[null,"Color","Name","Hex Code","RGB Value","Index Value","Decimal Value","Color Index"]
[null,null,"Dark Red",{"$f":"GetHEXcode(B5)","v":"C00000"},{"$f":"GetRGBvalue(B5,\"rgb\")","v":"192, 0, 0"},{"$f":"GetRGBvalue(B5,\"index\")","v":3},{"$f":"GetDecimal(B5)","v":192},53]
[null,null,"Red",{"$f":"GetHEXcode(B6)","v":"FF0000"},{"$f":"GetRGBvalue(B6,\"rgb\")","v":"255, 0, 0"},{"$f":"GetRGBvalue(B6,\"index\")","v":3},{"$f":"GetDecimal(B6)","v":255},3]
[null,null,"Orange",{"$f":"GetHEXcode(B7)","v":"FFC000"},{"$f":"GetRGBvalue(B7,\"rgb\")","v":"255, 192, 0"},{"$f":"GetRGBvalue(B7,\"index\")","v":44},{"$f":"GetDecimal(B7)","v":49407},44]
[null,null,"Yellow",{"$f":"GetHEXcode(B8)","v":"FFFF00"},{"$f":"GetRGBvalue(B8,\"rgb\")","v":"255, 255, 0"},{"$f":"GetRGBvalue(B8,\"index\")","v":6},{"$f":"GetDecimal(B8)","v":65535},6]
[null,null,"Light Green",{"$f":"GetHEXcode(B9)","v":"92D050"},{"$f":"GetRGBvalue(B9,\"rgb\")","v":"146, 208, 80"},{"$f":"GetRGBvalue(B9,\"index\")","v":43},{"$f":"GetDecimal(B9)","v":5296274},43]
[null,null,"Green",{"$f":"GetHEXcode(B10)","v":"00B050"},{"$f":"GetRGBvalue(B10,\"rgb\")","v":"0, 176, 80"},{"$f":"GetRGBvalue(B10,\"index\")","v":14},{"$f":"GetDecimal(B10)","v":5287936},10]
[null,null,"Light Blue",{"$f":"GetHEXcode(B11)","v":"00B0F0"},{"$f":"GetRGBvalue(B11,\"rgb\")","v":"0, 176, 240"},{"$f":"GetRGBvalue(B11,\"index\")","v":33},{"$f":"GetDecimal(B11)","v":15773696},33]
[null,null,"Blue",{"$f":"GetHEXcode(B12)","v":"0070C0"},{"$f":"GetRGBvalue(B12,\"rgb\")","v":"0, 112, 192"},{"$f":"GetRGBvalue(B12,\"index\")","v":23},{"$f":"GetDecimal(B12)","v":12611584},23]
[null,null,"Dark Blue",{"$f":"GetHEXcode(B13)","v":"002060"},{"$f":"GetRGBvalue(B13,\"rgb\")","v":"0, 32, 96"},{"$f":"GetRGBvalue(B13,\"index\")","v":49},{"$f":"GetDecimal(B13)","v":6299648},49]
[null,null,"Purple",{"$f":"GetHEXcode(B14)","v":"7030A0"},{"$f":"GetRGBvalue(B14,\"rgb\")","v":"112, 48, 160"},{"$f":"GetRGBvalue(B14,\"index\")","v":47},{"$f":"GetDecimal(B14)","v":10498160},29]
[null,null,"Black",{"$f":"GetHEXcode(B15)","v":"000000"},{"$f":"GetRGBvalue(B15,\"rgb\")","v":"0, 0, 0"},{"$f":"GetRGBvalue(B15,\"index\")","v":1},{"$f":"GetDecimal(B15)","v":0},1]
[]
[null,"Dataset",null,"Using VBA Code",null,null,null,"GET.CELL Function"]